bitfinex/quotes_SOLUSD_20260305
["timestamp","ask_amount","ask_price","bid_price","bid_amount"]
[1772671483944,0.50886508,91.204,91.138,0.52741744]
[1772671486063,0.50886508,91.202,91.14,0.52741744]
[1772671488567,0.53191684,91.2,91.142,0.51340455]
[1772671489969,0.53191684,91.198,91.144,0.51340455]
[1772671491578,0.53191684,91.196,91.146,0.51340455]
[1772671492186,10.96527298,91.197,91.146,0.51340455]
[1772671492360,10.96473328,91.202,91.146,0.51340455]
[1772671494175,10.96473328,91.202,91.148,0.51340455]
[1772671494773,10.96473328,91.202,91.147,38.39950847]
[1772671494774,0.53191684,91.219,91.154,0.51340455]
[1772671497170,0.53191684,91.217,91.156,0.51340455]
[1772671499275,0.53191684,91.209,91.157,11.48348912]
[1772671499574,0.53191684,91.209,91.158,0.51340455]
[1772671501278,0.53191684,91.197,91.147,0.51340455]
[1772671502680,38.3780346,91.198,91.126,54.86867107]
[1772671502681,0.53191684,91.195,91.149,0.51340455]
[1772671503272,0.53191684,91.195,91.148,10.97116777]
[1772671503477,0.53191684,91.195,91.148,11.48457232]
[1772671503782,0.53191684,91.195,91.149,0.51340455]
[1772671504978,0.53191684,91.195,91.148,38.39908719]
[1772671504979,0.53191684,91.193,91.151,0.51340455]
[1772671505680,0.53191684,91.193,91.116,3.69383402]
[1772671505886,0.53191684,91.149,91.11,0.51340455]
[1772671506665,0.53191684,91.139,91.081,0.51340455]
[1772671506870,0.53191684,91.129,91.081,0.51340455]
[1772671507076,0.53191684,91.117,91.066,0.51340455]
[1772671507969,10.97477995,91.118,91.066,0.51340455]
[1772671509387,0.53191684,91.138,91.074,0.51340455]
[1772671510092,0.53191684,91.143,91.084,0.51340455]
[1772671511071,10.97171491,91.144,91.084,0.51340455]
[1772671511675,0.53191684,91.149,91.086,0.51340455]
[1772671511894,10.97092704,91.15,91.094,0.51340455]
[1772671513883,0.53191684,91.155,91.096,0.51340455]
[1772671515991,0.53191684,91.153,91.098,0.51340455]
[1772671517802,10.96635522,91.188,91.104,0.51340455]
[1772671517975,0.53191684,91.187,91.114,0.51340455]
[1772671518175,0.53191684,91.185,91.116,0.51340455]
[1772671520491,0.51868204,91.183,91.124,0.52001512]
[1772671522371,0.51868204,91.191,91.125,38.40877913]
[1772671522573,0.51868204,91.191,91.129,0.14216157]
[1772671522795,0.51868204,91.189,91.134,0.52001512]
[1772671523598,11.48403049,91.197,91.134,0.52001512]
[1772671523802,10.96534845,91.197,91.134,0.52001512]
[1772671524000,0.51868204,91.196,91.134,0.52001512]
[1772671524385,0.51868204,91.204,91.144,0.52001512]
[1772671524700,10.9645516,91.203,91.146,0.52001512]
[1772671524998,0.51868204,91.203,91.146,0.28432314]
[1772671525582,10.96407801,91.207,91.146,0.28432314]
[1772671525794,0.51868204,91.209,91.149,0.28432314]
[1772671526098,0.51868204,91.209,91.148,3.69383402]
[1772671526700,0.5669536,91.207,91.152,3.69383402]
[1772671526897,0.5669536,91.207,91.153,0.53057642]
[1772671528820,0.5669536,91.205,91.155,0.53057642]
[1772671530813,0.5669536,91.203,91.157,0.53057642]
[1772671532206,104.9,91.229,91.157,0.53057642]
[1772671532395,0.1,91.29,91.163,0.53057642]
[1772671532590,0.1,91.29,91.16,0.28432314]
[1772671532591,4.14563491,91.35,91.215,0.53057642]
[1772671532791,38.31459566,91.349,91.239,0.53057642]
[1772671532987,38.31459566,91.349,91.253,0.53057642]
[1772671533403,3.69383402,91.346,91.253,0.53057642]
[1772671533605,4.14563491,91.33,91.249,0.53057642]
[1772671533810,4.14563491,91.31,91.251,0.53057642]
[1772671534114,4.14563491,91.3,91.229,0.53057642]
[1772671534297,4.14563491,91.29,91.229,0.53057642]
[1772671534501,8.89089345,91.3,91.229,0.53057642]
[1772671534697,0.5669536,91.299,91.229,0.53057642]
[1772671535311,0.5669536,91.289,91.231,0.53057642]
[1772671535507,0.5669536,91.279,91.23,10.96130658]
[1772671535705,0.5669536,91.279,91.224,10.96191157]
[1772671535904,0.5669536,91.279,91.204,5.71605963]
[1772671535905,0.5669536,91.269,91.218,10.96263408]
[1772671536110,0.5669536,91.259,91.212,11.49404509]
[1772671536622,0.5669536,91.259,91.212,0.53057642]
[1772671536804,0.5669536,91.259,91.205,10.96423017]
[1772671537321,0.5669536,91.259,91.206,0.53057642]
[1772671537516,8.89089345,91.27,91.205,38.37500808]
[1772671537517,0.5669536,91.257,91.208,0.53057642]
[1772671538314,0.5669536,91.257,91.207,10.96407074]
[1772671539222,0.5669536,91.257,91.208,0.53057642]
[1772671540403,43.82141834,91.28,91.189,0.98159926]
[1772671540404,0.5669536,91.249,91.201,10.96478832]
[1772671540603,0.5669536,91.239,91.196,10.96535749]
[1772671542727,0.5669536,91.237,91.192,27.94526191]
[1772671543025,0.5669536,91.237,91.19,10.9661147]
[1772671544023,0.5669536,91.237,91.19,11.49669112]
[1772671544224,0.5669536,91.237,91.191,0.53057642]
[1772671546716,0.5669536,91.235,91.193,0.53057642]
[1772671549729,0.55733369,91.233,91.194,11.51291712]
[1772671552105,0.55733369,91.231,91.195,0.54728342]
[1772671554127,8.89089345,91.22,91.189,0.98159926]
[1772671554318,0.55733369,91.219,91.164,0.58560157]
[1772671554515,8.89089345,91.19,91.145,0.58560157]
[1772671554726,8.89089345,91.19,91.146,10.9714085]
[1772671554914,8.89089345,91.2,91.146,10.9714085]
[1772671555335,104.9,91.229,91.147,0.58560157]
[1772671555633,224.70678502,91.23,91.147,0.58560157]
[1772671555634,8.89089345,91.21,91.147,0.58560157]
[1772671556419,38.37340612,91.209,91.149,0.58560157]
[1772671558929,38.37340612,91.209,91.151,0.58560157]
[1772671559125,8.89089345,91.2,91.151,0.58560157]
[1772671560431,8.89089345,91.19,91.143,0.58560157]
[1772671561337,8.89089345,91.18,91.143,0.58560157]
[1772671561636,8.89089345,91.18,91.125,27.43456904]
[1772671561637,8.89089345,91.18,91.135,0.58560157]
[1772671562232,8.89089345,91.17,91.135,0.58560157]
[1772671562546,8.89089345,91.18,91.135,0.58560157]
[1772671563042,8.89089345,91.17,91.115,0.58560157]
[1772671563416,38.39024229,91.169,91.115,0.58560157]
[1772671563741,38.39024229,91.169,91.117,0.58560157]
[1772671564526,8.91719132,91.16,91.112,11.56106142]
[1772671564724,8.91719132,91.13,91.078,0.58560157]
[1772671565535,38.40709323,91.129,91.08,0.58560157]
[1772671566239,8.91719132,91.12,91.08,0.58560157]
[1772671566419,38.40709323,91.129,91.08,0.58560157]
[1772671569535,38.40709323,91.129,91.081,0.58560157]
[1772671570935,8.91719132,91.12,91.072,0.58560157]
[1772671571327,38.41130828,91.119,91.074,0.58560157]
[1772671572422,8.91719132,91.1,91.064,0.58560157]
[1772671572622,8.91719132,91.1,91.06,0.2]
[1772671572623,8.91719132,91.11,91.06,0.2]
[1772671572920,104.9,91.118,91.061,0.58560157]
[1772671573126,43.87880994,91.161,91.061,0.58560157]
[1772671573127,10.97249196,91.137,91.061,0.58560157]
[1772671573435,8.91719132,91.12,91.063,0.58560157]
[1772671573946,3.69383402,91.134,91.063,0.58560157]
[1772671574123,8.91719132,91.13,91.063,0.58560157]
[1772671574322,8.91719132,91.12,91.063,0.58560157]
[1772671574739,3.69383402,91.134,91.063,0.58560157]
[1772671574740,0.02090752,91.129,91.063,0.58560157]
[1772671575322,38.40372186,91.137,91.06,0.2]
[1772671575323,38.40372186,91.137,91.065,0.58560157]
[1772671575626,0.02090752,91.136,91.065,0.58560157]
[1772671576946,0.02090752,91.136,91.064,38.43450759]
[1772671576947,104.9,91.141,91.067,0.58560157]
[1772671577124,10.97213078,91.14,91.073,0.58560157]
[1772671577529,9.87062794,91.158,91.078,0.58560157]
[1772671577732,9.87062794,91.158,91.083,0.58560157]
[1772671577929,10.97008457,91.157,91.083,0.58560157]
[1772671578631,10.97008457,91.157,91.093,0.28432314]
[1772671578832,10.97008457,91.157,91.094,0.59222266]
[1772671579743,0.02575727,91.156,91.096,0.59222266]
[1772671582047,10.97008457,91.157,91.098,0.59222266]
[1772671582452,0.02681249,91.156,91.098,0.59222266]
[1772671582749,0.02681249,91.149,91.098,0.59222266]
[1772671582948,0.02769541,91.139,91.098,0.59222266]
[1772671583154,0.02769541,91.139,91.089,0.59222266]
[1772671584441,0.02769541,91.139,91.091,0.59222266]
[1772671586361,3.69383402,91.15,91.082,0.58560157]
[1772671586362,0.03114038,91.129,91.082,0.58560157]
[1772671586541,4.82477569,91.149,91.082,0.58560157]
[1772671586542,0.03114038,91.119,91.082,0.58560157]
[1772671586748,0.03114038,91.119,91.083,0.58560157]
[1772671587048,0.03197374,91.138,91.083,0.58560157]
[1772671587649,10.97051152,91.154,91.086,0.58560157]
[1772671588231,10.97051152,91.154,91.085,3.69383402]
[1772671588232,10.97051152,91.154,91.092,0.58560157]
[1772671588532,10.97051152,91.154,91.094,0.58560157]
[1772671590035,10.97051152,91.154,91.096,0.58560157]
[1772671590853,0.0344894,91.153,91.096,0.58560157]
[1772671591153,2.96307683,91.157,91.096,0.58560157]
[1772671591360,2.96307683,91.157,91.102,0.58560157]
[1772671591856,13.93317401,91.157,91.102,0.58560157]
[1772671592255,2.96307683,91.157,91.104,0.58560157]
[1772671593372,0.03607142,91.19,91.112,0.58560157]
[1772671594269,0.03607142,91.19,91.123,0.58560157]
[1772671595066,10.96383032,91.209,91.143,0.58560157]
[1772671595460,6.89237985,91.223,91.143,0.58560157]
[1772671595660,10.96226787,91.222,91.153,0.58560157]
[1772671595858,38.36793755,91.222,91.153,0.58560157]
[1772671596163,0.03767031,91.219,91.153,0.58560157]
[1772671596383,0.03767031,91.218,91.155,0.58560157]
[1772671597460,6.89237985,91.223,91.155,0.58560157]
[1772671597768,10.96226787,91.222,91.155,0.58560157]
[1772671598458,6.89237985,91.223,91.157,0.58560157]
[1772671598665,6.89237985,91.223,91.163,0.58560157]
[1772671599059,10.96118643,91.231,91.163,0.58560157]
[1772671599763,10.96118643,91.231,91.173,0.58560157]
[1772671600659,0.04065062,91.219,91.175,0.58560157]
[1772671600857,0.04212562,91.209,91.161,0.58560157]
[1772671601364,0.04212562,91.189,91.151,0.58560157]
[1772671601568,0.04212562,91.199,91.151,0.58560157]
[1772671602162,0.04275956,91.189,91.138,27.43063201]
[1772671602370,0.04275956,91.189,91.139,0.58560157]
[1772671602569,0.04275956,91.188,91.141,0.58560157]
[1772671605574,0.04275956,91.188,91.133,10.97287527]
[1772671605773,0.04461393,91.179,91.134,0.58560157]
[1772671606472,38.38182236,91.189,91.134,0.58560157]
[1772671607359,0.04510248,91.188,91.134,0.58560157]
[1772671607658,0.04510248,91.188,91.136,0.58560157]
[1772671608270,0.04498513,91.179,91.132,1.53936335]
[1772671608574,0.04558778,91.169,91.132,2.12496492]
[1772671608955,0.04558778,91.169,91.132,1.53936335]
[1772671609580,0.04546649,91.168,91.132,1.53936335]
[1772671609970,10.96864065,91.169,91.133,0.58560157]
[1772671610177,10.96864065,91.169,91.134,0.58560157]
[1772671610476,10.96623496,91.189,91.134,0.58560157]
[1772671611573,0.0460631,91.202,91.135,38.40456464]
[1772671611885,0.04722906,91.212,91.136,0.58560157]
[1772671612983,0.04722906,91.212,91.138,0.58560157]
[1772671614664,0.04893454,91.209,91.138,0.58560157]
[1772671614866,38.4189752,91.217,91.14,0.58560157]
[1772671615071,38.4189752,91.217,91.143,0.58560157]
[1772671615368,0.04893454,91.216,91.143,0.58560157]
[1772671616074,0.04877081,91.209,91.143,0.58560157]
[1772671617568,0.04877081,91.209,91.139,38.40287911]
[1772671617569,0.04877081,91.209,91.145,0.58560157]
[1772671619987,0.05095476,91.189,91.137,0.58560157]
[1772671620371,0.05095476,91.211,91.137,0.58560157]
[1772671620585,0.05095476,91.189,91.137,0.58560157]
[1772671620969,0.05149657,91.179,91.137,0.58560157]
[1772671621171,0.05149657,91.159,91.114,0.58560157]
[1772671621476,0.05149657,91.159,91.115,0.58560157]
[1772671622285,0.05149657,91.159,91.117,0.58560157]
[1772671623087,0.05255356,91.168,91.117,0.58560157]
[1772671624193,0.05255356,91.168,91.119,0.58560157]
[1772671624886,0.05287646,91.177,91.119,0.58560157]
[1772671625888,0.05287646,91.177,91.109,0.58560157]
[1772671626090,0.05338736,91.138,91.1,0.58560157]
[1772671626411,0.05338736,91.138,91.065,0.58560157]
[1772671626976,0.05317673,91.154,91.077,0.58560157]
[1772671627169,8.91368693,91.15,91.083,0.58560157]
[1772671627370,0.05317673,91.149,91.083,0.58560157]
[1772671627575,0.05317673,91.129,91.083,0.58560157]
[1772671628290,0.05368563,91.149,91.085,0.58560157]
[1772671628675,0.05368563,91.139,91.085,0.58560157]
[1772671629293,0.0541864,91.159,91.085,0.58560157]
[1772671630485,0.0541864,91.159,91.087,0.58560157]
[1772671631983,0.05638394,91.149,91.087,0.58560157]
[1772671632380,0.05638394,91.149,91.089,0.58560157]
[1772671635099,0.05638394,91.149,91.091,0.58560157]
[1772671635283,0.05778172,91.139,91.091,0.58560157]
[1772671638398,0.05985851,91.129,91.091,0.58560157]
[1772671638600,0.05985851,91.129,91.083,0.59538516]
[1772671638789,0.06073098,91.119,91.083,0.59538516]
[1772671639498,0.06073098,91.129,91.083,0.59538516]
[1772671640296,0.06073098,91.129,91.084,10.97887664]
[1772671640506,0.06073098,91.129,91.085,0.59538516]
[1772671641114,27.49147705,91.139,91.085,0.59538516]
[1772671643212,27.49147705,91.139,91.087,0.59538516]
[1772671643719,10.97128813,91.147,91.087,0.59538516]
[1772671645606,0.06138058,91.157,91.089,0.59538516]
[1772671648200,0.06261832,91.159,91.089,0.59538516]
[1772671648404,0.06340733,91.158,91.091,0.58932515]
[1772671650391,0.06340733,91.158,91.093,0.58932515]
[1772671652609,0.06493107,91.159,91.095,0.58932515]
[1772671654813,0.06493107,91.159,91.083,43.91590471]
[1772671654814,0.06532538,91.158,91.097,0.58932515]
[1772671657312,0.06532538,91.158,91.099,0.58932515]
[1772671659413,0.06532538,91.158,91.084,61.3]
[1772671659414,0.06532538,91.158,91.101,0.58932515]
[1772671660611,0.06715584,91.168,91.103,0.58932515]
[1772671662607,0.06715584,91.168,91.105,0.58932515]
[1772671663011,0.06515145,91.149,91.105,0.58932515]
[1772671663312,0.06515145,91.139,91.072,0.58932515]
[1772671664306,4.16111112,91.15,91.074,0.58932515]
[1772671664508,0.06335312,91.149,91.074,0.58932515]
[1772671664914,0.06335312,91.149,91.076,0.58932515]
[1772671665214,0.06335312,91.149,91.082,0.58932515]
[1772671666519,0.06108934,91.148,91.084,0.58932515]
[1772671670622,0.06108934,91.148,91.086,0.58560157]
[1772671672529,0.06108934,91.148,91.088,0.58560157]
[1772671674726,0.06108934,91.148,91.09,0.58560157]
[1772671675903,0.0489075,91.139,91.09,0.58560157]
[1772671677325,0.0489075,91.139,91.092,0.58560157]
[1772671678113,0.0489075,91.139,91.087,10.97846498]
[1772671678307,0.04634649,91.119,91.083,0.58560157]
[1772671678623,0.04634649,91.119,91.084,10.97887664]
[1772671679329,0.04540747,91.118,91.083,0.58560157]
[1772671680231,27.43363694,91.13,91.079,0.58560157]
[1772671680410,0.04383108,91.139,91.079,0.58560157]
[1772671680608,11.01560071,91.143,91.079,0.58560157]
[1772671681528,10.97128813,91.147,91.083,0.58560157]
[1772671681729,0.04291659,91.146,91.083,0.58560157]
[1772671683429,0.04291659,91.146,91.085,0.58560157]
[1772671685914,0.04291659,91.146,91.087,0.58560157]
[1772671688121,0.04291659,91.146,91.089,0.58560157]
[1772671691140,0.04291659,91.146,91.091,0.58560157]
[1772671691716,10.9710474,91.149,91.091,0.58560157]
[1772671691922,0.03356611,91.169,91.097,0.28432314]
[1772671692121,10.96917271,91.165,91.102,0.58560157]
[1772671692842,0.03356611,91.164,91.102,0.58560157]
[1772671693543,0.03356611,91.164,91.104,0.58560157]
[1772671694720,0.03119885,91.179,91.112,0.58560157]
[1772671696339,0.03043459,91.159,91.113,10.97538221]
[1772671696526,0.03043459,91.159,91.109,0.58560157]
[1772671696723,0.03043459,91.149,91.102,0.58560157]
[1772671698834,0.02680432,91.159,91.104,0.58560157]
[1772671700837,0.02473574,91.158,91.106,0.58560157]
[1772671703138,0.02270214,91.149,91.069,0.58560157]
[1772671703439,0.02270214,91.129,91.072,0.58560157]
[1772671705442,0.02204152,91.128,91.074,0.58560157]
[1772671706255,1.01955068,108.6,91.074,0.58560157]
[1772671706256,0.02138335,91.145,91.074,0.58560157]
[1772671706449,10.97082535,91.151,91.082,0.58807286]
[1772671706948,10.96984389,91.159,91.082,0.58807286]
[1772671707952,4.16187153,91.17,91.082,0.58807286]
[1772671708154,4.16187153,91.17,91.093,0.58807286]
[1772671708155,27.42460974,91.159,91.093,0.58807286]
[1772671708860,4.16187153,91.15,91.093,0.58807286]
[1772671710643,4.16187153,91.14,91.087,0.58807286]
[1772671710850,4.16187153,91.13,91.08,10.9793588]
[1772671711656,4.16187153,91.12,91.08,11.56743166]
[1772671711863,4.16187153,91.13,91.081,0.58807286]
[1772671712342,38.40709323,91.129,91.083,0.58807286]
[1772671715158,38.40709323,91.129,91.084,10.97887664]
[1772671715345,38.40709323,91.129,91.085,0.58807286]
[1772671717340,38.40035108,91.145,91.087,0.58807286]
[1772671717753,4.16187153,91.13,91.087,0.58807286]
[1772671718064,4.16187153,91.13,91.079,0.58807286]
[1772671719258,10.97345521,91.129,91.081,0.58807286]
[1772671719650,38.40709323,91.129,91.081,0.58807286]
[1772671722846,38.40709323,91.129,91.083,0.58807286]
[1772671724957,38.40709323,91.129,91.085,0.58807286]
[1772671727368,4.16187153,91.13,91.087,0.58807286]
[1772671727667,38.40287911,91.139,91.087,0.58807286]
[1772671727872,10.97225117,91.139,91.087,0.58807286]
[1772671728058,38.40287911,91.139,91.087,0.58807286]
[1772671729372,38.40287911,91.139,91.089,0.58560157]
[1772671732375,38.39866591,91.149,91.091,0.58560157]
[1772671735067,27.42761851,91.149,91.093,0.58560157]
[1772671739175,38.39866591,91.149,91.095,0.58560157]
[1772671740670,104.9,91.157,91.095,0.58560157]
[1772671740861,43.85924987,91.201,91.095,0.58560157]
[1772671740862,10.96990775,91.159,91.095,0.58560157]
[1772671741564,10.96990775,91.159,91.097,0.58560157]
[1772671742961,4.16187153,91.19,91.103,0.58560157]
[1772671743868,38.38182236,91.189,91.105,0.58560157]
[1772671744388,38.38182236,91.189,91.113,0.58560157]
[1772671746526,27.4155874,91.189,91.114,93.28972493]
[1772671746683,27.4155874,91.189,91.115,0.58560157]
[1772671747088,4.15755818,91.18,91.114,10.97526175]
[1772671747270,4.15755818,91.16,91.115,0.58560157]
[1772671747889,4.15755818,91.18,91.115,0.58560157]
[1772671748465,4.15755818,91.17,91.115,0.58560157]
[1772671748662,4.15755818,91.15,91.088,0.58560157]
[1772671749665,4.15755818,91.16,91.088,0.58560157]
[1772671750674,4.15755818,91.15,91.09,0.58560157]
[1772671751372,38.39445363,91.159,91.09,0.58560157]
[1772671754388,104.9,91.158,91.092,0.58560157]
[1772671756486,104.9,91.158,91.079,87.83496722]
[1772671756487,10.97008457,91.157,91.094,0.58560157]
[1772671758688,3.69383402,91.169,91.096,0.58560157]
[1772671759890,10.96876096,91.168,91.098,0.58560157]
[1772671760079,38.39066338,91.168,91.098,0.58560157]
[1772671762587,4.25755818,91.25,91.089,43.91290111]
[1772671762588,10.96743767,91.179,91.113,0.58560157]
[1772671763300,38.38603186,91.179,91.113,0.58560157]
[1772671763474,4.15755818,91.17,91.113,0.58560157]
[1772671764881,38.39024229,91.169,91.115,0.58560157]
[1772671766495,38.39024229,91.169,91.117,0.58560157]
[1772671769182,38.38603186,91.179,91.119,0.58560157]
[1772671771676,38.38603186,91.179,91.121,0.58560157]
[1772671772196,104.9,91.178,91.121,0.58560157]
[1772671773285,4.15755818,91.17,91.122,11.55989976]
[1772671773483,4.15755818,91.17,91.123,0.58560157]
[1772671775199,38.39024229,91.169,91.124,10.97405732]
[1772671775381,38.39024229,91.169,91.125,0.58560157]
[1772671777480,27.42160164,91.169,91.127,0.58560157]
[1772671778397,27.42160164,91.169,91.122,0.58560157]
[1772671778788,104.9,91.168,91.116,11.56054249]
[1772671778991,4.15755818,91.16,91.116,0.58560157]
[1772671779298,4.15755818,91.16,91.117,10.9749004]
[1772671779880,4.15755818,91.16,91.076,3.69383402]
[1772671779881,4.15755818,91.15,91.088,11.56399608]
[1772671780100,4.15755818,91.15,91.089,0.58560157]
[1772671781814,38.39866591,91.149,91.091,0.58560157]
[1772671784096,38.39866591,91.149,91.092,38.42269354]
[1772671784403,38.39866591,91.149,91.093,0.58560157]
[1772671786916,54.84921949,91.159,91.073,3.69383402]
[1772671786917,38.39445363,91.159,91.095,0.58560157]
[1772671787207,104.9,91.158,91.095,0.58560157]
[1772671789729,38.39529601,91.157,91.097,0.58560157]
[1772671789893,4.15755818,91.15,91.097,0.58560157]
[1772671792711,38.39866591,91.149,91.098,10.9771894]
[1772671792897,38.39866591,91.149,91.099,0.58560157]
[1772671795898,27.42761851,91.149,91.101,0.58560157]
[1772671797721,4.15755818,91.14,91.094,0.58560157]
[1772671797915,38.40287911,91.139,91.095,11.56315247]
[1772671798120,38.40287911,91.139,91.096,0.58560157]
[1772671799303,10.97225117,91.139,91.096,0.58560157]
[1772671799895,27.42776662,91.149,91.097,10.9773099]
[1772671800103,115.87006911,91.158,91.098,0.58560157]
[1772671800302,10.97006911,91.158,91.098,0.58560157]
[1772671802624,4.8915582,91.18,91.1,0.58560157]
[1772671802625,4.15755818,91.16,91.1,0.58560157]
[1772671804106,4.82477569,91.169,91.1,0.58560157]
[1772671804319,104.9,91.168,91.1,0.58560157]
[1772671804631,10.96743767,91.179,91.105,0.58560157]
[1772671805124,10.96743767,91.179,91.107,0.58560157]
[1772671805316,10.96743767,91.179,91.113,0.58560157]
[1772671805931,0.73400002,91.18,91.123,0.58560157]
[1772671806136,27.4084724,91.213,91.127,0.14216157]
[1772671806314,4.15755818,91.21,91.132,0.58560157]
[1772671806833,38.37340612,91.209,91.134,0.58560157]
[1772671810930,38.36919938,91.219,91.136,0.58560157]
[1772671811132,93.18234137,91.219,91.141,0.58560157]
[1772671811431,4.15553577,91.2,91.141,0.58560157]
[1772671812536,4.15553577,91.21,91.141,0.58560157]
[1772671814138,4.15553577,91.2,91.143,0.58560157]
[1772671814343,38.37340612,91.209,91.143,0.58560157]
[1772671816344,38.37340612,91.209,91.145,0.58560157]
[1772671816731,4.15553577,91.2,91.145,0.58560157]
[1772671820348,143.27761378,91.199,91.147,0.58560157]
[1772671822349,143.27761378,91.199,91.149,0.58560157]
[1772671823326,115.86503251,91.199,91.149,0.58560157]
[1772671823624,0.51040223,91.222,91.151,0.55997486]
[1772671823836,0.51040223,91.221,91.153,0.55997486]
[1772671824738,0.51040223,91.219,91.158,0.55997486]
[1772671827243,0.5584597,91.217,91.16,0.52024271]
[1772671829557,0.5584597,91.215,91.162,0.52024271]
[1772671831138,0.5584597,91.213,91.164,0.52024271]
[1772671831547,0.5584597,91.189,91.139,0.52024271]
[1772671831753,0.5584597,91.189,91.14,0.52024271]
[1772671833136,0.5584597,91.187,91.14,0.52024271]
[1772671833337,0.5584597,91.169,91.12,0.52024271]
[1772671833556,3.69383402,91.185,91.12,0.52024271]
[1772671833557,0.5584597,91.159,91.12,0.52024271]
[1772671835244,0.5584597,91.157,91.12,0.52024271]
[1772671836588,0.5584597,91.155,91.113,0.52024271]
[1772671842169,0.5584597,91.153,91.115,0.52024271]
[1772671842764,0.5584597,91.153,91.108,0.52024271]
[1772671842967,0.5584597,91.149,91.099,0.52024271]
[1772671843262,38.39655965,91.154,91.094,10.97765127]
[1772671843263,0.5584597,91.139,91.094,10.97765127]
[1772671843471,0.5584597,91.139,91.095,0.52024271]
[1772671844963,0.5584597,91.139,91.078,27.44879965]
[1772671844964,0.5584597,91.137,91.096,11.49767311]
[1772671845467,0.5584597,91.137,91.097,0.52024271]
[1772671847068,0.5584597,91.135,91.097,0.52024271]
[1772671848462,0.5584597,91.133,91.099,0.52024271]
[1772671850557,0.53555731,91.131,91.101,0.5392056]
[1772671853469,0.53555731,91.129,91.103,0.5392056]
[1772671858458,0.53555731,91.127,91.105,0.5392056]
[1772671860173,0.53555731,91.138,91.105,0.5392056]
[1772671860371,10.97249196,91.137,91.105,0.5392056]
[1772671860567,0.53555731,91.136,91.099,0.5392056]
[1772671860766,0.53555731,91.136,91.069,38.4323974]
[1772671860767,0.53555731,91.136,91.07,0.5392056]
[1772671864277,0.53555731,91.134,91.072,0.5392056]
[1772671865895,10.9719027,91.142,91.075,0.5392056]
[1772671866092,0.53555731,91.141,91.075,0.5392056]
[1772671866293,10.9719027,91.142,91.055,87.85891333]
[1772671866294,0.53555731,91.139,91.077,0.5392056]
[1772671868478,0.53555731,91.137,91.079,0.5392056]
[1772671871293,0.53555731,91.135,91.081,0.5392056]
[1772671872784,0.53555731,91.133,91.083,0.5392056]
[1772671873892,0.53555731,91.119,91.064,0.5392056]
[1772671874694,0.53555731,91.115,91.064,0.5392056]
[1772671874869,0.53555731,91.113,91.066,0.5392056]
[1772671875991,0.53555731,91.113,91.038,3.69383402]
[1772671875992,0.53555731,91.113,91.059,0.5392056]
[1772671876175,0.53555731,91.109,91.061,0.5392056]
[1772671876375,0.53555731,91.109,91.062,0.5392056]
[1772671877193,0.53555731,91.107,91.062,0.5392056]
[1772671877994,0.53555731,91.107,91.064,0.5392056]
[1772671879293,0.50879082,91.105,91.064,0.5392056]
[1772671880795,98.76746549,91.124,91.064,0.5392056]
[1772671880796,0.50879082,91.103,91.065,0.54275988]
[1772671883797,0.50879082,91.101,91.067,0.54275988]
[1772671885505,0.50879082,91.101,91.054,11.52520442]
[1772671885690,0.50879082,91.087,91.06,1e-08]
[1772671886992,0.50879082,91.087,91.05,1e-08]
[1772671887787,0.49112233,91.085,91.05,1e-08]
[1772671889694,0.49112233,91.083,91.05,1e-08]
[1772671890109,0.49112233,91.083,91.05,0.50995032]
[1772671890601,0.49112233,91.083,91.05,1e-08]
[1772671890803,0.49112233,91.069,91.022,0.50995031]
[1772671891101,0.49112233,91.059,91.022,0.50995031]
[1772671891303,0.49112233,91.059,91.024,0.50995031]
[1772671891878,3.69383402,91.081,91.024,0.50995031]
[1772671891879,0.49112233,91.057,91.024,0.50995031]
[1772671892906,0.49112233,91.055,91.024,0.50995031]
[1772671893479,0.49112233,91.055,91.026,0.50995031]
[1772671895515,0.49112233,91.053,91.006,27.47066732]
[1772671895684,0.49112233,91.053,91.019,0.50995031]
[1772671896102,0.49112233,91.053,91.01,1e-08]
[1772671896103,0.49112233,91.049,91.01,1e-08]
[1772671896304,0.49112233,91.039,91.01,1e-08]
[1772671897493,0.49112233,91.027,91.01,1e-08]
[1772671900314,0.49112233,91.025,91.01,1e-08]
[1772671902317,0.49112233,91.023,91.01,1e-08]
[1772671903697,0.49112233,91.019,91.0,1e-08]
[1772671904306,0.49112233,91.017,91.0,1e-08]
[1772671905819,0.49112233,91.015,91.0,1e-08]
[1772671907616,0.49112233,91.021,91.0,1e-08]
[1772671907811,0.49112233,91.021,91.0,0.50995032]
[1772671908512,0.49112233,91.021,91.0,1e-08]
[1772671908696,0.51572408,91.019,91.0,1e-08]
[1772671909315,27.98054077,91.026,91.0,1e-08]
[1772671909504,10.98551011,91.029,91.0,1e-08]
[1772671909903,0.51572408,91.034,91.0,1e-08]
[1772671911510,0.51572408,91.029,91.0,1e-08]
[1772671912218,0.51572408,91.019,91.0,1e-08]
[1772671913602,10.98563079,91.028,91.0,1e-08]
[1772671915016,0.51572408,91.034,91.0,1e-08]
[1772671917519,4.16219028,91.02,91.0,1e-08]
[1772671917704,0.51572408,91.019,91.0,1e-08]
[1772671918102,0.51572408,91.019,90.99,1e-08]
[1772671918299,0.51572408,91.019,90.99,0.50881109]